{"text_format":"1","workbook":"xlsx","n_sheets":5,"sheets":["Home Page","Incorrect Cell Formatting","VBA - Superscript Cell Format","CHAR Function","VBA - Superscript Unicodes"],"not_rendered":{"charts":0,"images":1,"macros":1,"external_links":0,"defined_names":0,"comments":0,"pivot_tables":0},"unopened":[],"bounds":{"document_bytes":16777216,"sheet_cells":100000,"rows_first":2000,"rows_last":500,"rows_between":2000,"halvings":0,"cell_chars":16384,"cell_head_chars":4096},"cells_cut":0,"cells_raw":0,"read":"whole","date_system":"1900"}

{"sheet":"Home Page","index":0,"n_rows":21,"n_cols":3,"rows_kept":21,"cut":false,"hidden":false,"merged":[]}
[]
[]
[]
[]
[]
[null,"Excel Superscript Not Working"]
[]
[null,"Learn the reasons and solutions for Superscript Not Working in Excel with this free workbook. Read the article we provided and practice these in practice section."]
[]
[]
[null,"Prepared By","Seemanto Saha"]
[null,"Reviewed By","A.N.M. Mohaimen Shanto"]
[null,"Last Update","2023-10-08"]
[null,"Article Link","[Fixed!] Excel Superscript Not Working"]
[]
[null,"Examples"]
[]
[null,"Reason 1: Superscript Not Working Due to Incorrect Number Format in Cells"]
[null,"   Solution: Apply VBA Code to Generate Superscript"]
[null,"Reason 2: CHAR Function Can Not Generate Superscripts for All Characters"]
[null,"   Solution: Use VBA to Generate Superscripts"]

{"sheet":"Incorrect Cell Formatting","index":1,"n_rows":20,"n_cols":13,"rows_kept":20,"cut":false,"hidden":false,"merged":[[0,1,0,3],[0,10,0,12],[2,1,2,3],[2,10,2,12]]}
[null,"Excel Superscript Not Working",null,null,null,null,null,null,null,null,"Excel Superscript Not Working"]
[]
[null,"Incorrect Number Format in Cells",null,null,null,null,null,null,null,null,"Try Yourself"]
[]
[null,"Base","Superscript","Superscripted Values",null,null,null,null,null,null,"Base","Superscript","Superscripted Values"]
[null,10,2,"102",null,null,null,null,null,null,10,2]
[null,3,2,"32",null,null,null,null,null,null,3,2]
[null,5,3,"53",null,null,null,null,null,null,5,3]
[null,10,5,"105",null,null,null,null,null,null,10,5]
[null,5,0,"50",null,null,null,null,null,null,5,0]
[null,10,12,"1012",null,null,null,null,null,null,10,12]
[]
[]
[]
[]
[]
[]
[]
[]
[null,"Back to Home Page"]

{"sheet":"VBA - Superscript Cell Format","index":2,"n_rows":20,"n_cols":13,"rows_kept":20,"cut":false,"hidden":false,"merged":[[2,1,2,3],[0,1,0,3],[0,10,0,12],[2,10,2,12]]}
[null,"Excel Superscript Not Working",null,null,null,null,null,null,null,null,"Excel Superscript Not Working"]
[]
[null,"Using VBA to Generate Superscripts",null,null,null,null,null,null,null,null,"Try Yourself"]
[]
[null,"Base","Superscript","Superscripted Values",null,null,null,null,null,null,"Base","Superscript","Superscripted Values"]
[null,10,2,"102",null,null,null,null,null,null,10,2,"102"]
[null,3,2,"32",null,null,null,null,null,null,3,2,"32"]
[null,"x","yz","xyz",null,null,null,null,null,null,"x","yz","xyz"]
[null,10,"a","10a",null,null,null,null,null,null,10,"a","10a"]
[null,"mn","k6","mnk6",null,null,null,null,null,null,"mn","k6","mnk6"]
[null,16,13,"1613",null,null,null,null,null,null,16,13,"1613"]
[]
[]
[]
[]
[]
[]
[]
[]
[null,"Back to Home Page"]

{"sheet":"CHAR Function","index":3,"n_rows":20,"n_cols":14,"rows_kept":20,"cut":false,"hidden":false,"merged":[[0,1,0,4],[0,10,0,13],[2,1,2,4],[2,10,2,13]]}
[null,"Excel Superscript Not Working",null,null,null,null,null,null,null,null,"Excel Superscript Not Working"]
[]
[null,"Limitations of CHAR Function",null,null,null,null,null,null,null,null,"Try Yourself"]
[]
[null,"Base","Superscript","Unicode of Superscript","Superscripted Values",null,null,null,null,null,"Base","Superscript","Unicode of Superscript","Superscripted Values"]
[null,10,2,178,{"$f":"B6&CHAR(D6)","v":"10²"},null,null,null,null,null,10,2,178,{"$f":"K6&CHAR(M6)","v":"10²"}]
[null,3,1,185,{"$f":"B7&CHAR(D7)","v":"3¹"},null,null,null,null,null,3,1,185,{"$f":"K7&CHAR(M7)","v":"3¹"}]
[null,5,0,8304,{"$error":"#VALUE!"},null,null,null,null,null,5,0,8304,{"$error":"#VALUE!"}]
[null,2,3,179,"2³",null,null,null,null,null,2,3,179,"2³"]
[null,10,"a",7491,{"$error":"#VALUE!"},null,null,null,null,null,10,"a",7491,{"$error":"#VALUE!"}]
[null,"m",2,178,"m²",null,null,null,null,null,"m",2,178,"m²"]
[null,"x",7,8311,{"$error":"#VALUE!"},null,null,null,null,null,"x",7,8311,{"$error":"#VALUE!"}]
[null,"p","k",7503,{"$error":"#VALUE!"},null,null,null,null,null,"p","k",7503,{"$error":"#VALUE!"}]
[]
[]
[]
[]
[]
[]
[null,"Back to Home Page"]

{"sheet":"VBA - Superscript Unicodes","index":4,"n_rows":20,"n_cols":13,"rows_kept":20,"cut":false,"hidden":false,"merged":[[2,1,2,3],[0,1,0,3],[0,10,0,12],[2,10,2,12]]}
[null,"Excel Superscript Not Working",null,null,null,null,null,null,null,null,"Excel Superscript Not Working"]
[]
[null,"Using VBA to Generate Superscripts",null,null,null,null,null,null,null,null,"Try Yourself"]
[]
[null,"Base","Superscript","Superscripted Values",null,null,null,null,null,null,"Base","Superscript","Superscripted Values"]
[null,10,2,{"$f":"ApplySuperscript(B6,C6)","v":"10²"},null,null,null,null,null,null,10,2,{"$f":"ApplySuperscript(K6,L6)","v":"10²"}]
[null,3,2,{"$f":"ApplySuperscript(B7,C7)","v":"3²"},null,null,null,null,null,null,3,2,{"$f":"ApplySuperscript(K7,L7)","v":"3²"}]
[null,"x","yz",{"$f":"ApplySuperscript(B8,C8)","v":"xʸᶻ"},null,null,null,null,null,null,"x","yz",{"$f":"ApplySuperscript(K8,L8)","v":"xʸᶻ"}]
[null,10,"a",{"$f":"ApplySuperscript(B9,C9)","v":"10ᵃ"},null,null,null,null,null,null,10,"a",{"$f":"ApplySuperscript(K9,L9)","v":"10ᵃ"}]
[null,"mn","k6",{"$f":"ApplySuperscript(B10,C10)","v":"mnᵏ⁶"},null,null,null,null,null,null,"mn","k6",{"$f":"ApplySuperscript(K10,L10)","v":"mnᵏ⁶"}]
[null,16,13,{"$f":"ApplySuperscript(B11,C11)","v":"16¹³"},null,null,null,null,null,null,16,13,{"$f":"ApplySuperscript(K11,L11)","v":"16¹³"}]
[]
[]
[]
[]
[]
[]
[]
[]
[null,"Back to Home Page"]